Cogmind - Beta 11.1 @@@ ROGUE MODE // 2022.06.26 @ 19:20:30 Player: Espresso Result: Destroyed by S-27 Virus with Autogun Performance ------------- Evolutions (3) 1500 Regions Visited (6) 1200 Robots Destroyed (16) 80 Value Destroyed (606) 606 Prototype IDs (2) 40 Alien Tech Used (0) 0 Bonus (487) 487 TOTAL SCORE: 3913 Bonus ------- Pacifist 470 High Alert Combat Kills 17 Cogmind --------- Core Integrity 0/700 Matter 48/300 Energy 100/100 System Corruption 3% Temperature Cool (0) Movement Core (50) Location -7/Lower Caves Parts ------- > --- POWER (1) -------- (None) > --- PROPULSION (2) --- (None) > --- UTILITY (2) ------ (None) > --- WEAPON (8) ------- (None) > --- INVENTORY (5) ---- Cesium-ion Thruster Cesium-ion Thruster Improved Grenade Launcher Rocket Array Rocket Array Peak State ------------ > --- POWER ------------ (None) > --- PROPULSION ------- Armored Treads > --- UTILITY ---------- Weight Redist. System Advanced Visual Processing Unit > --- WEAPON ----------- Rocket Array Rocket Array > --- INVENTORY -------- Light Nuclear Core Heavy EM Shotgun Heavy EM Shotgun Greatsword [Rating: 19] Favorites ----------- Power Light Nuclear Core Engine Light Deuterium Engine Power Core Light Nuclear Core Propulsion Cesium-ion Thruster Treads Armored Treads Hover Unit Improved Hover Unit Flight Unit Cesium-ion Thruster Utility Advanced Visual Processing Unit Device Weight Redist. System Processor Advanced Visual Processing Unit Weapon Rocket Array Energy Gun Heavy EM Shotgun Ballistic Gun Minigun Launcher Rocket Array Build | -11 -10 -10 -9 -8 -7 -7 ------- Run | Scr Mat Min Mat Mat Fac Low Slots Evolved 6 | . . . 2 2 2 . Power . | . . . . . . . Propulsion . | . . . . . . . Utility . | . . . . . . . Weapon 6 | . . . 2 2 2 . Parts Attached 18 | . . . . 11 7 . Power 3 | . . . . 2 1 . Engine 1 | . . . . 1 . . Core 2 | . . . . 1 1 . Reactor . | . . . . . . . Propulsion 3 | . . . . 1 2 . Treads 1 | . . . . . 1 . Leg . | . . . . . . . Wheel . | . . . . . . . Hover 1 | . . . . 1 . . Flight 1 | . . . . . 1 . Utility 2 | . . . . 1 1 . Device 1 | . . . . . 1 . Storage . | . . . . . . . Processor 1 | . . . . 1 . . Hackware . | . . . . . . . Protection . | . . . . . . . Artifact . | . . . . . . . Weapon 10 | . . . . 7 3 . Energy Gun 3 | . . . . 3 . . Energy Cannon . | . . . . . . . Ballistic Gun 3 | . . . . 3 . . Ballistic Cannon . | . . . . . . . Launcher 4 | . . . . 1 3 . Special Weapon . | . . . . . . . Impact Weapon . | . . . . . . . Slashing Weapon . | . . . . . . . Piercing Weapon . | . . . . . . . Special Melee Weapon . | . . . . . . . Unidentified Prototypes 2 | . . . . 1 1 . Parts Lost 6 | . . . . 4 . 2 Power 2 | . . . . 1 . 1 Propulsion 2 | . . . . 1 . 1 Utility . | . . . . . . . Weapon 2 | . . . . 2 . . Highest Loss Streak 3 | . . . . 3 . 2 To Critical Strikes . | . . . . . . . Average Slot Usage (%) 12 | . . . . 17 13 8 Engine 1 | . . . . 4 . . Core 1 | . . . . . 3 3 Hover 1 | . . . . 4 . . Flight 1 | . . . . . 3 3 Processor 3 | . . . . 7 1 . Launcher 1 | . . . . . 2 . Naked Turns 422 | . 33 42 150 4 160 33 Heaviest Build 17 | . . . . 17 14 5 Greatest Support 26 | 3 3 3 3 7 26 5 Greatest Overweight (x) 5 | . . . . 5 2 1 Average Overweight (x) . | . . . . . . . Largest Inventory Capacity 5 | 5 5 5 5 5 5 5 Average Capacity 5 | 5 5 5 5 5 5 5 Most Carried 5 | . . . 1 5 5 5 Average Carried 3 | . . . . 2 4 5 Final Capacity 5 | 5 5 5 5 5 5 5 Final Carried 5 | . . . 1 5 5 5 Class Distribution -------------------- 100% | Mutant Dominant Class ---------------- Mutant | -10/Materials Mutant | -10/Mines Mutant | -9/Materials Mutant | -8/Materials Mutant | -7/Factory Mutant | -7/Lower Caves Resources | -11 -10 -10 -9 -8 -7 -7 ----------- Run | Scr Mat Min Mat Mat Fac Low Matter Collected 257 | . . . . 217 23 17 Remotely . | . . . . . . . Salvage Created 481 | . . . . 428 53 . Parts 20 | . . . . 16 4 . Haulers Intercepted . | . . . . . . . Recyclers Shooed 2 | . . . . 1 1 . Parts Field Recycled . | . . . . . . . Retrieved Matter . | . . . . . . . Parts Self-Destructed . | . . . . . . . Prevented 1 | . . . . . . 1 Kills | -11 -10 -10 -9 -8 -7 -7 ------- Run | Scr Mat Min Mat Mat Fac Low Combat Hostiles Destroyed 14 | . . . . 11 3 . Guns 7 | . . . . 7 . . AOE 7 | . . . . 4 3 . Classes Destroyed 6 | . . . . 4 2 . Builder 2 | . . . . . 2 . Swarmer 3 | . . . . . 3 . Grunt 8 | . . . . 8 . . Brawler 1 | . . . . 1 . . Sentry 1 | . . . . 1 . . Hunter 1 | . . . . 1 . . Best Kill Streak 7 | . . . . 7 5 . Combat Bots Only 7 | . . . . 7 3 . Max Kills in Single Turn 3 | . . . . 2 3 . Gunslinging . | . . . . . . . Exploded 2 | . . . . 2 2 . Melee . | . . . . . . . Uniques/NPCs Destroyed . | . . . . . . . Combat | -11 -10 -10 -9 -8 -7 -7 -------- Run | Scr Mat Min Mat Mat Fac Low Damage Taken 1874 | . 20 . . 821 606 427 Core 1168 | . 20 . . 437 340 371 Absorbed by Shields . | . . . . . . . Core Remaining (%) 78 | 100 . 92 100 20 . . Volleys Fired 31 | . . . . 28 3 . Largest 3 | . . . . 3 1 . Hottest 150 | . . . . 150 45 . Shots Fired 33 | . . . . 30 3 . Gun 26 | . . . . 26 . . Cannon . | . . . . . . . Launcher 7 | . . . . 4 3 . Special . | . . . . . . . Kinetic 23 | . . . . 23 . . Thermal . | . . . . . . . Explosive 7 | . . . . 4 3 . Electromagnetic 3 | . . . . 3 . . Robot Hit Streak 9 | . . . . 9 3 . Robot Miss Streak 3 | . . . . 2 3 . Penetration Max . | . . . . . . . Secondary Targets . | . . . . . . . Shots Hit Robots 25 | . . . . 22 3 . Core Hits 35 | . . . . 24 10 1 Critical Kills . | . . . . . . . Critical Parts Destroyed . | . . . . . . . Critical Strikes . | . . . . . . . Melee Attacks . | . . . . . . . Impact . | . . . . . . . Slashing . | . . . . . . . Piercing . | . . . . . . . Sneak Attacks . | . . . . . . . Combat Hostiles . | . . . . . . . Follow-up Attacks . | . . . . . . . Damage Inflicted 1586 | . . . . 1177 401 8 Guns 364 | . . . . 364 . . Cannons . | . . . . . . . Explosions 1206 | . . . . 805 401 . Melee . | . . . . . . . Ramming 16 | . . . . 8 . 8 Kinetic 339 | . . . . 339 . . Thermal 63 | . . . . 63 . . Explosive 1143 | . . . . 742 401 . Electromagnetic 25 | . . . . 25 . . Impact . | . . . . . . . Slashing . | . . . . . . . Piercing . | . . . . . . . Highest Corruption 3 | . . . . . 3 3 Average Corruption 2 | . . . . . 1 3 Corruption Purged . | . . . . . . . Corruption Blocked . | . . . . . . . Effects 1 | . . . . . . 1 Alerts 1 | . . . . . . 1 Overload Shots . | . . . . . . . Overflow Damage 15 | . . . . . 15 . Projectiles . | . . . . . . . Explosions 15 | . . . . . 15 . Melee . | . . . . . . . Knockbacks . | . . . . . . . Impact . | . . . . . . . Kinetic . | . . . . . . . Secondary . | . . . . . . . Self-Inflicted Damage 77 | . . . . 59 15 3 Shots 2 | . . . . 1 1 . Rammed 8 | . . . . 1 2 5 Targets Rammed 8 | . . . . 1 2 5 Kicked . | . . . . . . . Crushed . | . . . . . . . Highest Temperature 90 | . . . . 90 . . Average Temperature 24 | . . . . 24 . . Received Heat Transfer 630 | . . . . 306 282 42 Siege Activations . | . . . . . . . Robots Corrupted . | . . . . . . . Combat Hostiles . | . . . . . . . Parts Fried . | . . . . . . . Impact Corruptions . | . . . . . . . Robots Melted . | . . . . . . . Combat Hostiles . | . . . . . . . Parts Melted . | . . . . . . . Heat Transferred 100 | . . . . 100 . . Parts Sabotaged . | . . . . . . . Parts Stolen . | . . . . . . . Parts Stripped . | . . . . . . . Power Chain Reactions 1 | . . . . 1 . . Missiles Intercepted . | . . . . . . . Alert | -11 -10 -10 -9 -8 -7 -7 ------- Run | Scr Mat Min Mat Mat Fac Low Peak Influence 450 | . 30 11 33 450 443 . Initial 137 | . . 11 3 13 137 . Average 202 | . 10 11 18 197 283 . Maximum Alert Level 2 | . . . . 2 2 . Low Security (%) 48 | 100 100 100 100 49 26 . Level 1 32 | . . . . 29 49 . Level 2 18 | . . . . 21 24 . Level 3 . | . . . . . . . Level 4 . | . . . . . . . Level 5 . | . . . . . . . High Security . | . . . . . . . Max Security . | . . . . . . . Squads Dispatched 13 | . . . 1 2 10 . Investigation 5 | . . . . . 5 . Extermination . | . . . . . . . Reinforcement 7 | . . . 1 2 4 . Assault . | . . . . . . . Garrison 1 | . . . . . 1 . Intercept . | . . . . . . . Searches Triggered . | . . . . . . . Construction Impeded . | . . . . . . . Haulers Reinforced . | . . . . . . . Active Scanning Responses . | . . . . . . . Cargo Convoy Interrupts . | . . . . . . . Stealth | -11 -10 -10 -9 -8 -7 -7 --------- Run | Scr Mat Min Mat Mat Fac Low Distress Signals 2 | . . . . 1 1 . Communications Jammed . | . . . . . . . Distress Signals . | . . . . . . . Times Spotted 68 | . 5 . 2 21 25 15 Peak Tracking Total 14 | . 4 . 1 8 8 14 Tactical Retreats 12 | . 1 . . 4 5 2 Traps | -11 -10 -10 -9 -8 -7 -7 ------- Run | Scr Mat Min Mat Mat Fac Low Traps Triggered 3 | . . . . 1 2 . Indirectly . | . . . . . . . Trap Hack Attempts . | . . . . . . . Triggered . | . . . . . . . Disarmed . | . . . . . . . Reprogrammed . | . . . . . . . Reused . | . . . . . . . Traps Extracted . | . . . . . . . Installed . | . . . . . . . Triggered 2 | . . . . . . 2 Machines | -11 -10 -10 -9 -8 -7 -7 ---------- Run | Scr Mat Min Mat Mat Fac Low Machines Disabled . | . . . . . . . Max in Single Turn . | . . . . . . . Machines Sabotaged . | . . . . . . . Garrisons Compromised . | . . . . . . . Overloaded Fab Kills . | . . . . . . . Hacking | -11 -10 -10 -9 -8 -7 -7 --------- Run | Scr Mat Min Mat Mat Fac Low Machines Accessed 9 | . . . . 2 7 . Terminals 5 | . . . . 1 4 . Fabricators 2 | . . . . . 2 . Repair Stations . | . . . . . . . Recycling Units 2 | . . . . 1 1 . Scanalyzers . | . . . . . . . Garrison Access . | . . . . . . . Total Hacks 25 | . . . . 5 20 . Successful 13 | . . . . 5 8 . Failed 12 | . . . . . 12 . Catastrophic 2 | . . . . . 2 . Database Lockouts . | . . . . . . . Manual . | . . . . . . . Terminals 12 | . . . . 1 11 . Fabricators 6 | . . . . . 6 . Repair Stations . | . . . . . . . Recycling Units 7 | . . . . 4 3 . Scanalyzers . | . . . . . . . Garrison Access . | . . . . . . . Terminal Hacks 6 | . . . . 1 5 . Record 1 | . . . . . 1 . Open DSF 1 | . . . . . 1 . Terminal Index 1 | . . . . . 1 . Alert Level 1 | . . . . . 1 . Locate Traps 1 | . . . . . 1 . Hauler Manifests 1 | . . . . 1 . . Fabricator Hacks 2 | . . . . . 2 . Network Status 1 | . . . . . 1 . Build 1 | . . . . . 1 . Repair Station Hacks . | . . . . . . . Recycling Unit Hacks 5 | . . . . 4 1 . Process 2 | . . . . 1 1 . Report Inventory 1 | . . . . 1 . . Retrieve Matter 2 | . . . . 2 . . Scanalyzer . | . . . . . . . Garrison Access Hacks . | . . . . . . . Unauthorized Hacks . | . . . . . . . Terminals . | . . . . . . . Fabricators . | . . . . . . . Repair Stations . | . . . . . . . Recycling Units . | . . . . . . . Scanalyzers . | . . . . . . . Garrison Access . | . . . . . . . Data Cores Recovered . | . . . . . . . Used . | . . . . . . . Hacking Detections 6 | . . . . . 6 . Full Trace Events 5 | . . . . . 5 . Feedback Events 1 | . . . . . 1 . Corruption 1 | . . . . . 1 . Feedback Blocked . | . . . . . . . Robot Schematics Acquired . | . . . . . . . Robots Built . | . . . . . . . Authchips . | . . . . . . . Time . | . . . . . . . Total Robot Build Rating . | . . . . . . . Part Schematics Acquired . | . . . . . . . Parts Built 1 | . . . . . 1 . Authchips . | . . . . . . . Time 106 | . . . . . 106 . Total Part Build Rating 6 | . . . . . 6 . Parts Repaired . | . . . . . . . Time . | . . . . . . . Parts Recycled . | . . . . . . . Recycled Matter 57 | . . . . 14 43 . Retrieved Matter 14 | . . . . 14 . . Retrieved Components . | . . . . . . . Parts Scanalyzed . | . . . . . . . Part Schematics Acquired . | . . . . . . . Parts Damaged . | . . . . . . . Bothacking | -11 -10 -10 -9 -8 -7 -7 ------------ Run | Scr Mat Min Mat Mat Fac Low Used RIF Installer . | . . . . . . . Robots Hacked . | . . . . . . . Non-combat . | . . . . . . . Combat . | . . . . . . . Robot Hacks Applied . | . . . . . . . Relay Couplers Released . | . . . . . . . Fabnet Peak Effective % . | . . . . . . . Robots Rewired . | . . . . . . . Allies Hacked . | . . . . . . . Hacks Repelled . | . . . . . . . Allies | -11 -10 -10 -9 -8 -7 -7 -------- Run | Scr Mat Min Mat Mat Fac Low Total Allies . | . . . . . . . Largest Group . | . . . . . . . Highest-Rated Group . | . . . . . . . Highest-Rated Ally . | . . . . . . . Total Orders . | . . . . . . . Ally Attacks . | . . . . . . . Total Damage . | . . . . . . . Kills . | . . . . . . . Allies Corrupted . | . . . . . . . Allies Melted . | . . . . . . . Intel | -11 -10 -10 -9 -8 -7 -7 ------- Run | Scr Mat Min Mat Mat Fac Low Robot Analysis Total . | . . . . . . . Derelict Logs Recovered . | . . . . . . . Drone Launches . | . . . . . . . Drone Recoveries . | . . . . . . . Exploration | -11 -10 -10 -9 -8 -7 -7 ------------- Run | Scr Mat Min Mat Mat Fac Low Turns Passed 1349 | 10 33 42 150 467 564 83 Spaces Moved 2037 | 20 65 84 289 571 820 188 Core 1138 | 20 65 84 289 287 343 50 Treads 45 | . . . . . 45 . Legs . | . . . . . . . Wheels . | . . . . . . . Hover 284 | . . . . 284 . . Flight 570 | . . . . . 432 138 Fastest Speed 35 | 50 50 50 50 50 35 35 Average Speed 51 | 50 50 50 50 56 51 39 Slowest Speed 300 | 50 50 50 50 300 170 100 Overloaded Moves . | . . . . . . . Propulsion Burnouts . | . . . . . . . Robots Hopped 5 | . . . . . 5 . Cave-ins Triggered . | . . . . . . . Exploration Rate (%) 29 | 4 27 38 24 46 25 40 Regions Visited 6 Branch Regions 2 Pre-discovered Areas . | . . . . . . . Known Exits Taken . | . . . . . . . Unknown Exits Taken 6 | 1 1 1 1 1 1 . Scrap Searched 1 | . . . . . . 1 Spaces Dug . | . . . . . . . Terrain Destroyed 67 | . . . . 31 36 . Melee . | . . . . . . . Projectile . | . . . . . . . AOE 67 | . . . . 31 36 . Terrain Rammed . | . . . . . . . Walls Destroyed . | . . . . . . . Machines Disabled . | . . . . . . . Actions | -11 -10 -10 -9 -8 -7 -7 --------- Run | Scr Mat Min Mat Mat Fac Low Total 2300 | 19 64 83 293 693 951 197 Wait 187 | . . . 4 63 116 4 Move 2021 | 19 64 83 288 570 809 188 Hop 5 | . . . . . 5 . Pick Up 16 | . . . 1 10 5 . Fast Attach 7 | . . . . 2 5 . Attach 11 | . . . . 9 2 . Detach 7 | . . . . 6 1 . Swap . | . . . . . . . Drop 7 | . . . . 4 3 . Fire 31 | . . . . 28 3 . Melee . | . . . . . . . Ram 8 | . . . . 1 2 5 Kick . | . . . . . . . Crush . | . . . . . . . Escape Stasis . | . . . . . . . Rewire . | . . . . . . . Trap . | . . . . . . . Miscellaneous . | . . . . . . . Route ------- -11/Scrapyard -10/Materials -10/Mines -9/Materials -8/Materials -7/Factory (discovered 2 exits: [*Fac] / [*Low]) -7/Lower Caves History --------- Turn | Location | Event 5 | -11/Scrapyard | Discovered new exit (range 12) 11 | -11/Scrapyard | Entered Materials 38 | -10/Materials | Discovered new exit (range 8) 44 | -10/Materials | Entered Mines 80 | -10/Mines | Discovered new exit (range 12) 86 | -10/Mines | Entered Materials 86 | -9/Materials | Evolved 2 slots: Weapon x2 232 | -9/Materials | Discovered new exit (range 9) 236 | -9/Materials | Entered another Materials area 236 | -8/Materials | Evolved 2 slots: Weapon x2 311 | -8/Materials | Build established: Mutant 486 | -8/Materials | Core integrity fell below 50% 506 | -8/Materials | Lost 3 parts (1p1n1w) 514 | -8/Materials | Destroyed 7 combat bots 695 | -8/Materials | Discovered new exit (range 8) 703 | -8/Materials | Entered Factory 703 | -7/Factory | Evolved 2 slots: Weapon x2 720 | -7/Factory | Found Prototype Launcher 720 | -7/Factory | Identified Rocket Array 722 | -7/Factory | Found Rocket Array 815 | -7/Factory | Released all parts (5) 964 | -7/Factory | Garrison activated, responded to threat 1151 | -7/Factory | Fabricated Imp. Kinecellerator (x1) 1249 | -7/Factory | Discovered new exit (range 13) 1264 | -7/Factory | Discovered new exit (range 8) 1267 | -7/Factory | Entered Lower Caves 1277 | -7/Lower Caves | Core integrity fell below 50% 1278 | -7/Lower Caves | Attracted the attention of an 0b10 checkpoint 1310 | -7/Lower Caves | Attracted the attention of an 0b10 outpost 1334 | -7/Lower Caves | Core integrity fell below 20% 1350 | -7/Lower Caves | Destroyed by S-27 Virus with Autogun Last Messages --------------- Y-54 Guardian: "INTERCEPTING UNREGISTERED DERELICT." Searching scrap... Found Mak. Shrapnel Gun. Found Particle Charger. Found Hpw. Shotgun. Found Targeting Computer. Found 17 Matter. Acquired 17 matter. System corrupted: IFF burst signal emitted. Slug penetrates Wall. B-48 Gladiator springs to life. G-47 Trooper springs to life. L-41 Fighter springs to life. Y-64 Sentinel: "DETECTED UNIDENTIFIED DERELICT." Y-64 Sentinel: "REQUESTING BACKUP." Cesium-ion Thruster destroyed. Lgt. Nuclear Core destroyed. Slammed into 1C-FJI(k). Slammed into S-27 Virus. Slammed into TP-WQ7(S). Map ----- +----------------------------------------------------+ | ?????????????????????????????????????????????????? | | ?????????????????????????????????????????????????? | | ?????????????????????????????????????????????????? | | ?????????????????????????????????????????????????? | | ?????????????????????????????????????????????????? | | ?????????????????????????????????????????????????? | | ?????????????????????????????????????????????????? | | ?????????????????????????????????????????????????? | | ???????????????????????????????????????????????? | | ??????????????????????????????????????????????? | | ??????????????????????? ??? ??????????????????? | | ??????????????????????# ? #????????????? ????# | | ??????????????????????# ? #????????????? ???# | | ??????????????????????# ? #????????????? #### | | ??????????????????????# ? #?????????????? $ | | ??????????????????????# ? ???????????????? | | ??????????????????????# ? ?????????????????# | | ??????????????????????# ? ?????????????????# | | ?????????????????????? # ?????????????????# | | ??????????????????????? ??????????????????# | | ??????????????????????? ??????????????????# | | ???????????????????????# ???????###????????# | | ???????????????????????# ??????#$$#????????# | | ???????????????????????# #????## $?????????### | | ???????????????????????# S#????#$ $????????????# | | ????????????????????????#@#????# $###??????????# | | ????????????????????????# #???## ## #??????????# | | ???????????????????####?#s#?### $ #??????###?# | | ???????????????????# ###s### ##????## ### | | ??????????????????## ## ## ##??## | | ?????????????????## ##s## ##?# | | ?????????????????# ## ## #?# #### | | ????????????????## ### ## | | ???????????????## ###### ## | | ??????????????## #????## | | ??????????????# #?????# ## ## | | ??????????????# #?????# #### ##?? | | ??????????????## ?? ##??# ####??? | | ???????????????## #???# #?????? | | ????????????????## ######## #??# #?????? | | ?????????????????###???????# #??# ##?????? | | ???????????????????????????### #??# ##??????? | | ?????????????????????????????## ??# ##???????? | | ??????????????????????????????## ??###?????????? | | ???????????????????????????????#####?????????????? | | ?????????????????????????????????????????????????? | | ?????????????????????????????????????????????????? | | ?????????????????????????????????????????????????? | | ?????????????????????????????????????????????????? | | ?????????????????????????????????????????????????? | +----------------------------------------------------+ Best States ------------- Heat Dissipation 34 Energy Generation 14 Energy Capacity 160 Matter Stores 140 Matter Capacity 300 Sight Range 20 Terrain Scan Density 10 Additional Mass Support 6 Evasion (%) 63 Recoil Reduction 1 Item Schematics ----------------- None Robot Schematics ------------------ None Fabricated ------------ Imp. Kinecellerator | x1 | -7/Factory | Preloaded Alien Tech Used ----------------- None Achievements -------------- Executioner Challenges ------------ None Game ------ Seed LightningOmegaPrototype Manual? 0 Play Time 00:23:39 Cumulative 2.3 hours Start 2022.06.26 @ 18:55:08 End 2022.06.26 @ 19:20:30 Sessions 1 Manual Loads 0 Difficulty Rogue Special Mode None Game No. 13 Rogue 13 Adventurer 0 Explorer 0 Win Type - Total 0 Types 0/0/0/0/0/0/0/0/0 Lore% 5 Gallery% 10 Achievement% 16 Wizard Run 0 Options --------- ASCII 0 Keyboard 0 Movement Numpad Keybinds 0 Fullscreen 1 Font 24/Terminus Map View 76x50 Tactical HUD 0 Map Filters NONE Filters NONE Steam 1 RUN: e6b560d3-ba93-43fb-8c92-a1de90637943